{"text_format":"3","workbook":"xlsx","n_sheets":3,"sheets":["Transfer","Language","Help"],"not_rendered":{"images":2,"macros":1},"read":"whole","date_system":"1900"}

{"sheet":"Transfer","index":0,"n_rows":29,"n_cols":14,"rows_kept":29,"merged":[[4,1,4,4],[5,1,6,4],[8,1,8,4],[9,1,10,4],[12,1,12,4],[13,1,13,2],[17,1,18,4],[19,1,20,4],[28,0,28,5]]}
[null,{"$f":"Language!E7","v":"Dateien lesen und übertragen"},{"$nulls":7},"hb/vers. 1.6.x\n2023-12-11"]
[]
[{"$nulls":11},{"$f":"Language!$E35","v":"Transfer ab der 1. Runde der Gruppenphase (alle)"},1,{"$f":"_xlfn.IFNA(VLOOKUP($B$14,$L$3:$M$9,2,0),1)","v":1}]
[{"$nulls":11},{"$f":"Language!$E36","v":"Transfer ab der 2. Runde der Gruppenphase"},2]
[null,{"$f":"Language!E8","v":"Verzeichnispfad der Vorhersagen (optional):"},{"$nulls":9},{"$f":"Language!$E37","v":"Transfer ab der 3. Runde der Gruppenphase"},3]
[{"$nulls":11},{"$f":"Language!$E38","v":"Transfer ab Achtelfinale"},4]
[{"$nulls":11},{"$f":"Language!$E39","v":"Transfer ab Viertelfinale"},5]
[{"$nulls":11},{"$f":"Language!$E40","v":"Transfer ab Halbfinale"},6]
[null,{"$f":"Language!E9","v":"Dateiname des WM-Spielplans:"},{"$nulls":9},{"$f":"Language!$E41","v":"Transfer nur Finale"},7]
[null,"EURO_2024_1.6.1_de.xlsx"]
[]
[null,{"$f":"Language!$E$15","v":"Bitte den Dateinamen eingeben!"}]
[null,{"$f":"Language!E30","v":"Ab welcher Phase des Turniers sollen die Vorhersagen übertragen werden?"}]
[{"$nulls":3},"ƒ",{"$f":"Language!E42","v":"alle"}]
{"$rows_empty":14}
["ACHTUNG:\nBeim Klick auf 'START' werden alle noch offenen Exceldateien ohne Speichern geschlossen!"]

{"sheet":"Language","index":1,"n_rows":42,"n_cols":15,"rows_kept":42,"merged":[[0,5,0,9],[0,11,0,12],[1,5,1,9],[2,3,3,3],[2,4,3,4],[2,5,3,5],[2,6,3,6],[2,7,3,7],[2,8,3,8],[2,9,3,9],[2,10,3,10],[2,11,3,11]]}
[{"$nulls":5},{"$f":"Language!$E$5","v":"Wahl der Sprache"},{"$nulls":5},{"$f":"Language!$E$11","v":"Hier klicken und Sprache wählen:"},null,"german","←"]
[]
[null,"english",{"$f":"IF(AND($N$1<>B4,$N$1<>B5,$N$1<>B6,$N$1<>B7,$N$1<>B8,$N$1<>B9),1,0)","v":0},null,null,"english","spanish","italian","french","german","dutch","my language"]
[null,"spanish",{"$f":"IF($N$1=B4,1,0)","v":0}]
[null,"italian",0,null,{"$f":"IF($C$3,F5,IF($C$4,G5,IF($C$5,H5,IF($C$6,I5,IF($C$7,J5,IF($C$8,K5,IF(L5<>\"\",L5,F5)))))))","v":"Wahl der Sprache"},"Choose language","Elección de la lengua","Scelta della lingua","Choix de langue","Wahl der Sprache","Keuze van taal"]
[null,"french",0,null,{"$f":"IF($C$3,F6,IF($C$4,G6,IF($C$5,H6,IF($C$6,I6,IF($C$7,J6,IF($C$8,K6,IF(L6<>\"\",L6,F6)))))))","v":"Anleitung"},"Instructions","Instrucciones","Istruzioni","Instructions","Anleitung","Instructies"]
[null,"german",1,null,"Dateien lesen und übertragen","Read and transfer files","Leer y transferir archivos","Leggere e trasferire file","Lire et transférer des fichiers","Dateien lesen und übertragen","Bestanden lezen en overdragen"]
[null,"dutch",0,null,"Verzeichnispfad der Vorhersagen (optional):","Directory path of predictions files (optional):","Ruta del directorio de predicciones (opcional):","Percorso della directory delle previsioni (opzionale):","Chemin du répertoire des prédictions (facultatif) :","Verzeichnispfad der Vorhersagen (optional):","Voorspellingen mappad (optioneel):"]
[null,"my language",0,null,"Dateiname des WM-Spielplans:","File name of the Excel World Cup schedule:","Nombre de archivo de la hoja de cálculo de Excel de la Copa Mundial:","Nome file del foglio di calcolo excel della Coppa del Mondo:","Nom de fichier de la feuille de calcul Excel de la Coupe du monde :","Dateiname des WM-Spielplans:","Bestandsnaam van het WK-wedstrijdlijst:"]
[{"$nulls":4},"Transfer:","Transfer:","Transferir:","Trasferimento:","Transférer:","Transfer:","Overdracht:"]
[{"$nulls":4},"Hier klicken und Sprache wählen:","Click here and choose language:","Haga clic aquí y elija el idioma:","Clicca qui e scegli la lingua:","Cliquez ici et choisissez la langue :","Hier klicken und Sprache wählen:","Klik hier en kies taal:"]
[{"$nulls":4},"WM-Spielplan öffnen…","Open Excel World Cup schedule…","abrir la hoja de cálculo de Excel de la Copa del Mundo…","Apri il foglio di calcolo excel della Coppa del Mondo…","ouvrir la feuille de calcul Excel de la Coupe du monde ...","WM-Spielplan öffnen…","WK-wedstrijdlijst openen…"]
[{"$nulls":4},"Dateien werden übertragen - bitte warten…","Files are being transferred - please wait…","Los archivos se están transfiriendo - espere por favor…","I file vengono trasferiti - attendere prego…","Les fichiers sont en cours de transfert - s'il vous plaît, attendez…","Dateien werden übertragen - bitte warten…","Bestanden worden overgedragen - even geduld..."]
[{"$nulls":4},"Fertig!","Finished!","¡Acabado!","Finito!","Achevé!","Fertig!","Afgewerkt!"]
[{"$nulls":4},"Bitte den Dateinamen eingeben!","Please enter filename!","¡Por favor ingrese el nombre del archivo!","Per favore inserisci il nome del file!","Veuillez saisir le nom du fichier !","Bitte den Dateinamen eingeben!","Voer de bestandsnaam in!"]
[{"$nulls":4},"Es wurden keine Dateien übertragen","No files were transferred","No se transfirieron archivos","Nessun file è stato trasferito","Aucun fichier n'a été transféré","Es wurden keine Dateien übertragen","Er zijn geen bestanden overgedragen"]
[{"$nulls":4},"Es wurde 1 Datei übertragen","1 file was transferred","1 archivo fue transferido","1 file è stato trasferito","1 fichier a été transféré","Es wurde 1 Datei übertragen","1 bestand is overgedragen"]
[{"$nulls":4},"Es wurden "," ","Se transfirieron ","Sono stati trasferiti "," ","Es wurden ","Er zijn "]
[{"$nulls":4}," Dateien übertragen"," files were transferred"," archivos"," file"," fichiers ont été transférés"," Dateien übertragen"," bestanden overgedragen"]
[{"$nulls":5},"Help"]
[{"$nulls":4},"Diese Datei ('PredictionsTransfer_2.xlsm') und der EURO-Spielplan müssen sich in demselben Ordner befinden.","This file ('PredictionsTransfer_2.xlsm') and the EURO schedule must be in the same folder.","Este archivo ('PredictionsTransfer_2.xlsm') y el calendario de la EURO deben estar en la misma carpeta.","Questo file ('PredictionsTransfer_2.xlsm') e il programma EURO devono trovarsi nella stessa cartella.","Ce fichier (« PredictionsTransfer_2.xlsm ») et le calendrier de l'EURO doivent être dans le même dossier.","Diese Datei ('PredictionsTransfer_2.xlsm') und der EURO-Spielplan müssen sich in demselben Ordner befinden.","Dit bestand ('PredictionsTransfer_2.xlsm') en het EURO-schema moeten in dezelfde map staan."]
[{"$nulls":4},"Wenn sich die Dateien mit den Vorhersagen in einem separaten Ordner befinden, muss der Pfad des Ordners angegeben werden - entweder als absoluter Pfad (z. B. 'D:\\Eigene Dateien\\Excel\\WM_2022\\Tipps') oder als relativer Pfad (z. B. '..\\Data\\Tipps' oder 'Tipps') oder als Netzwerkpfad (z. B. '//host/data/excel/').","If the files with the predictions are in a separate folder, the path of the folder must be specified - either as an absolute path (e.g. 'D:\\My Documents\\Excel\\WM_2022\\Tips') or as a relative path (e.g '..\\Data\\Tips' or 'Tips') or as a network path (e.g. '//host/data/excel/').","Si los archivos con las predicciones están en una carpeta separada, se debe especificar la ruta de la carpeta, ya sea como una ruta absoluta (por ejemplo, 'D:\\Mis documentos\\Excel\\WM_2022\\Tips') o como una ruta relativa (por ejemplo, ' ..\\Datos\\Consejos' o 'Consejos') o como una ruta de red (por ejemplo, '//host/data/excel/').","Se i file con le previsioni si trovano in una cartella separata, è necessario specificare il percorso della cartella, sia come percorso assoluto (ad esempio 'D:\\My Documents\\Excel\\WM_2022\\Tips') o come percorso relativo (ad esempio ' ..\\Dati\\Suggerimenti' o 'Suggerimenti') o come percorso di rete (ad es. '//host/data/excel/').","Si les fichiers avec les prédictions se trouvent dans un dossier séparé, le chemin du dossier doit être spécifié - soit comme chemin absolu (par exemple 'D:\\Mes Documents\\Excel\\WM_2022\\Tips') ou comme chemin relatif (par exemple ' ..\\Données\\Astuces' ou 'Astuces') ou comme chemin réseau (par exemple '//host/data/excel/').","Wenn sich die Dateien mit den Vorhersagen in einem separaten Ordner befinden, muss der Pfad des Ordners angegeben werden - entweder als absoluter Pfad (z. B. 'D:\\Eigene Dateien\\Excel\\WM_2022\\Tipps') oder als relativer Pfad (z. B. '..\\Data\\Tipps' oder 'Tipps') oder als Netzwerkpfad (z. B. '//host/data/excel/').","Als de bestanden met de voorspellingen zich in een aparte map bevinden, moet het pad van de map worden opgegeven - ofwel als een absoluut pad (bijv. 'D:\\Mijn documenten\\Excel\\WM_2022\\Tips') of als een relatief pad (bijv. '. .\\Data\\Tips' of 'Tips') of als een netwerkpad (bijv. '//host/data/excel/')."]
[{"$nulls":4},"Dateien, die nicht die Endung .xlsx haben, werden übersprungen. Bei Dateien mit der Endung .xlsx wird geprüft, ob der Inhalt der Zelle J1 mit 'hb/vers' beginnt. Wenn nicht, wird diese Datei ebenfalls ignoriert. Deshalb die Zelle J1 nicht verändern oder löschen!","Files that do not have the extension .xlsx are skipped. For files with the extension .xlsx, it is checked whether the content of cell J1 starts with 'hb/vers'. If not, this file will also be ignored. Therefore, do not change or delete cell J1!","Los archivos que no tienen la extensión .xlsx se omiten. Para archivos con la extensión .xlsx, se verifica si el contenido de la celda J1 comienza con 'hb/vers'. Si no, este archivo también será ignorado. Por lo tanto, ¡no cambie ni elimine la celda J1!","I file che non hanno l'estensione .xlsx vengono ignorati. Per i file con estensione .xlsx, viene verificato se il contenuto della cella J1 inizia con 'hb/vers'. In caso contrario, anche questo file verrà ignorato. Pertanto, non modificare o eliminare la cella J1!","Les fichiers qui n'ont pas l'extension .xlsx sont ignorés. Pour les fichiers avec l'extension .xlsx, il est vérifié si le contenu de la cellule J1 commence par 'hb/vers'. Sinon, ce fichier sera également ignoré. Par conséquent, ne modifiez ni ne supprimez la cellule J1 !","Dateien, die nicht die Endung .xlsx haben, werden übersprungen. Bei Dateien mit der Endung .xlsx wird geprüft, ob der Inhalt der Zelle J1 mit 'hb/vers' beginnt. Wenn nicht, wird diese Datei ebenfalls ignoriert. Deshalb die Zelle J1 nicht verändern oder löschen!","Bestanden die niet de extensie .xlsx hebben, worden overgeslagen. Bij bestanden met de extensie .xlsx wordt gecontroleerd of de inhoud van cel J1 begint met 'hb/vers'. Zo niet, dan wordt ook dit bestand genegeerd. Wijzig of verwijder daarom cel J1 niet!"]
[{"$nulls":4},"Nach dem Einlesen einer Datei wird diese umbenannt. Dem alten Dateinamen werden zwei Underscore-Zeichen vorangestellt. Aus 'Peter.xlsx' wird dann z. B. '__Peter.xlsx'. Dateien mit zwei Underscore-Zeichen am Anfang des Dateinamens werden beim Einlesen übersprungen. Auf diese Weise wird keine Datei zweimal eingelesen. Die bereits eingelesenen Dateien können in dem Ordner verbleiben.","After reading in a file, it is renamed. Two underscore characters are prefixed to the old file name. For example, 'Peter.xlsx' becomes '__Peter.xlsx'. Files with two underscore characters at the beginning of the file name are skipped during import. This way no file is read in twice. The files that have already been read in can remain in the folder.","Después de leer un archivo, se le cambia el nombre. Dos caracteres de subrayado se anteponen al nombre de archivo anterior. Por ejemplo, 'Peter.xlsx' se convierte en '__Peter.xlsx'. Los archivos con dos guiones bajos al principio del nombre del archivo se omiten durante la importación. De esta forma, ningún archivo se lee dos veces. Los archivos que ya se han leído pueden permanecer en la carpeta.","Dopo aver letto in un file, viene rinominato. Due caratteri di sottolineatura sono preceduti dal vecchio nome del file. 'Peter.xlsx' diventa quindi ad es. '__Pietro.xlsx'. I file con due caratteri di sottolineatura all'inizio del nome del file vengono ignorati durante l'importazione. In questo modo nessun file viene letto due volte. I file già letti possono rimanere nella cartella.","Après lecture dans un fichier, il est renommé. Deux caractères de soulignement sont préfixés à l'ancien nom de fichier. Par exemple, 'Peter.xlsx' devient '__Peter.xlsx'. Les fichiers avec deux caractères de soulignement au début du nom de fichier sont ignorés lors de l'importation. De cette façon, aucun fichier n'est lu deux fois. Les fichiers déjà lus peuvent rester dans le dossier.","Nach dem Einlesen einer Datei wird diese umbenannt. Dem alten Dateinamen werden zwei Underscore-Zeichen vorangestellt. Aus 'Peter.xlsx' wird dann z. B. '__Peter.xlsx'. Dateien mit zwei Underscore-Zeichen am Anfang des Dateinamens werden beim Einlesen übersprungen. Auf diese Weise wird keine Datei zweimal eingelesen. Die bereits eingelesenen Dateien können in dem Ordner verbleiben.","Na het inlezen van een bestand wordt het hernoemd. Twee onderstrepingstekens worden voorafgegaan door de oude bestandsnaam. 'Peter.xlsx' wordt dan b.v. '__Peter.xlsx'. Bestanden met twee onderstrepingstekens aan het begin van de bestandsnaam worden tijdens het importeren overgeslagen. Zo wordt geen enkel bestand twee keer ingelezen. De reeds ingelezen bestanden kunnen in de map blijven staan."]
[{"$nulls":4},"Existiert ein Benutzername bereits im EURO-Spielplan, wird kein neuer Benutzer hinzugefügt, sondern die bisherigen Vorhersagen werden überschrieben/aktualisiert.","If a username already exists in the EURO schedule, no new user will be added, but the previous predictions will be overwritten/updated.","Si ya existe un nombre de usuario en el calendario de la EURO, no se agregará ningún usuario nuevo, pero las predicciones anteriores se sobrescribirán/actualizarán.","Se un nome utente esiste già nel calendario EURO, non verrà aggiunto nessun nuovo utente, ma i pronostici precedenti verranno sovrascritti/aggiornati.","Si un nom d'utilisateur existe déjà dans le calendrier de l'EURO, aucun nouvel utilisateur ne sera ajouté, mais les pronostics précédents seront écrasés/mis à jour.","Existiert ein Benutzername bereits im EURO-Spielplan, wird kein neuer Benutzer hinzugefügt, sondern die bisherigen Vorhersagen werden überschrieben/aktualisiert.","Als er al een gebruikersnaam bestaat in het EURO-schema, wordt er geen nieuwe gebruiker toegevoegd, maar worden de eerdere voorspellingen overschreven/geüpdatet."]
[{"$nulls":4},"Beim Einlesen der Dateien erscheint rechts eine Liste der erfolgreich eingelesenen Dateien. Wurden die Vorhersagen eines Benutzers überschrieben/aktualisiert, wird der Dateiname mit einem roten Punkt gekennzeichnet.","When the files are read in, a list of the successfully read files appears on the right. If a user's predictions have been overwritten/updated, the file name will be marked with a red dot.","Cuando se leen los archivos, aparece a la derecha una lista de los archivos leídos correctamente. Si las predicciones de un usuario se sobrescribieron/actualizaron, el nombre del archivo se marcará con un punto rojo.","Quando i file vengono letti, sulla destra viene visualizzato un elenco dei file letti correttamente. Se le previsioni di un utente sono state sovrascritte/aggiornate, il nome del file verrà contrassegnato con un punto rosso.","Lorsque les fichiers sont lus, une liste des fichiers lus avec succès apparaît sur la droite. Si les prédictions d'un utilisateur ont été écrasées/mises à jour, le nom du fichier sera marqué d'un point rouge.","Beim Einlesen der Dateien erscheint rechts eine Liste der erfolgreich eingelesenen Dateien. Wurden die Vorhersagen eines Benutzers überschrieben/aktualisiert, wird der Dateiname mit einem roten Punkt gekennzeichnet.","Wanneer de bestanden zijn ingelezen, verschijnt rechts een lijst met de succesvol gelezen bestanden. Als de voorspellingen van een gebruiker zijn overschreven/bijgewerkt, wordt de bestandsnaam gemarkeerd met een rode stip."]
[{"$nulls":4},"Der Button 'Reset' wird nur im Notfall benötigt, wenn durch einen unvorhergesehenen Error der START-Button deaktiviert sein sollte.","The 'Reset' button is only required in an emergency if the START button is deactivated due to an unforeseen error.","El botón 'Reiniciar' solo es necesario en caso de emergencia si el botón START se desactiva debido a un error imprevisto.","Il pulsante 'Reset' è necessario solo in caso di emergenza se il pulsante START è disattivato a causa di un errore imprevisto.","Le bouton 'Reset' n'est requis qu'en cas d'urgence si le bouton START est désactivé en raison d'une erreur imprévue.","Der Button 'Reset' wird nur im Notfall benötigt, wenn durch einen unvorhergesehenen Error der START-Button deaktiviert sein sollte.","De 'Reset'-knop is alleen nodig in noodgevallen als de START-knop door een onvoorziene fout is gedeactiveerd."]
[{"$nulls":4},"ja","yes","sí","sì","oui","ja","ja"]
[{"$nulls":4},"nein","no","no","no","non","nein","nee"]
[{"$nulls":4},"Ab welcher Phase des Turniers sollen die Vorhersagen übertragen werden?","From which stage of the tournament should the predictions be transferred?","¿Desde qué etapa del torneo se deben trasladar los pronósticos?","Da quale fase del torneo devono essere trasferiti i pronostici?","À partir de quelle phase du tournoi les pronostics doivent-ils être transférés ?","Ab welcher Phase des Turniers sollen die Vorhersagen übertragen werden?","Vanaf welke fase van het toernooi moeten de voorspell. worden overgedragen?"]
[{"$nulls":4},"Man kann auswählen, ab welcher Phase des Turniers die Vorhersagen übertragen werden.\nAuf diese Weise können die Vorhersagen in mehreren Stufen übertragen werden, zum Beispiel zuerst nur die Gruppenphase, dann das Achtelfinale und danach der Rest.","You can select from which phase of the tournament the predictions are transferred.\nIn this way, the predictions can be transferred in several stages, for example, first only the group stage, then the round of 16 and then the rest.","Puedes elegir desde qué fase del torneo se transfieren los pronósticos.\nDe esta forma, los pronósticos se pueden trasladar en varias etapas, por ejemplo solo la fase de grupos primero, luego los octavos de final y luego el resto.","Puoi scegliere da quale fase del torneo trasferire i pronostici.\nIn questo modo i pronostici possono essere trasferiti in più fasi, ad esempio prima solo la fase a gironi, poi gli ottavi e poi il resto.","Vous pouvez choisir à partir de quelle phase du tournoi les pronostics sont transférés.\nDe cette manière, les pronostics peuvent être transférés en plusieurs étapes, par exemple uniquement la phase de groupes d'abord, puis les huitièmes de finale et ensuite le reste.","Man kann auswählen, ab welcher Phase des Turniers die Vorhersagen übertragen werden.\nAuf diese Weise können die Vorhersagen in mehreren Stufen übertragen werden, zum Beispiel zuerst nur die Gruppenphase, dann das Achtelfinale und danach der Rest.","U kunt kiezen uit welke fase van het toernooi de voorspellingen worden overgedragen.\nOp deze manier kunnen de voorspellingen in verschillende fasen worden overgedragen, bijvoorbeeld eerst alleen de groepsfase, dan de achtste finales en dan de rest."]
[{"$nulls":4}," (falsche Variante)"," (wrong variant)"," (variante incorrecta)"," (variante sbagliata)"," (mauvaise variante)"," (falsche Variante)"," (verkeerde variant)"]
[{"$nulls":4},"Übersprungen:","Skipped:","Salteado:","Saltato:","Ignoré :","Übersprungen:","Overgeslagen:"]
[{"$nulls":4},"ACHTUNG:\nBeim Klick auf 'START' werden alle noch offenen Exceldateien ohne Speichern geschlossen!","ATTENTION:\nIf you click on 'START', all Excel files that are still open will be closed without saving!","ATENCIÓN:\nSi hace clic en 'INICIO', todos los archivos de Excel que aún estén abiertos se cerrarán sin guardar.","ATTENZIONE:\nSe clicchi su 'START', tutti i file Excel ancora aperti verranno chiusi senza salvare!","ATTENTION :\nSi vous cliquez sur 'START', tous les fichiers Excel encore ouverts seront fermés sans sauvegarde !","ACHTUNG:\nBeim Klick auf 'START' werden alle noch offenen Exceldateien ohne Speichern geschlossen!","GROET:\nWanneer u op 'START' klikt, worden alle Excel-bestanden die nog openstaan ​​gesloten zonder op te slaan!"]
[{"$nulls":4},"Transfer ab der 1. Runde der Gruppenphase (alle)","Transfer from the 1st round of the group stage (all)","Traslado desde la 1ª ronda de la fase de grupos (todos)","Trasferimento dal 1° turno della fase a gironi (tutti)","Transfert à partir du 1er tour de la phase de groupes (voir tout)","Transfer ab der 1. Runde der Gruppenphase (alle)","Transfer van ronde 1 van groepsfase (allemaal)"]
[{"$nulls":4},"Transfer ab der 2. Runde der Gruppenphase","Transfer from the 2nd round of the group stage","Traslado desde la 2ª ronda de la fase de grupos","Trasferimento dal 2° turno della fase a gironi","Transfert à partir du 2e tour de la phase de groupes","Transfer ab der 2. Runde der Gruppenphase","Transfer van de 2e ronde van de groepsfase"]
[{"$nulls":4},"Transfer ab der 3. Runde der Gruppenphase","Transfer from the 3rd round of the group stage","Traslado desde la 3ª ronda de la fase de grupos","Trasferimento dal 3° turno della fase a gironi","Transfert à partir du 3e tour de la phase de groupes","Transfer ab der 3. Runde der Gruppenphase","Transfer van de 3e ronde van de groepsfase"]
[{"$nulls":4},"Transfer ab Achtelfinale","Transfer from round of 16","Traslado desde octavos de final","Trasferimento dagli ottavi di finale","Transfert à partir des huitièmes de finale","Transfer ab Achtelfinale","Transfer van ronde van 16"]
[{"$nulls":4},"Transfer ab Viertelfinale","Transfer from quarter finals","Traslado desde los cuartos de final","Trasferimento dai quarti di finale","Transfert à partir des quarts de finale","Transfer ab Viertelfinale","Transfer van kwartfinales"]
[{"$nulls":4},"Transfer ab Halbfinale","Transfer from semi-final","Traslado desde la semifinal","Trasferimento dalla semifinale","Transfert à partir des demi-finales","Transfer ab Halbfinale","Transfer van halve finales"]
[{"$nulls":4},"Transfer nur Finale","Transfer only of the final","Transferencia solo de la final","Trasferimento solo della finale","Transfert uniquement de la finale","Transfer nur Finale","Transfer alleen finales"]
[{"$nulls":4},"alle","all","todos","tutti","tous","alle","alle"]

{"sheet":"Help","index":2,"n_rows":19,"n_cols":2,"rows_kept":19}
[null,{"$f":"Language!E6","v":"Anleitung"}]
[]
[]
[null,"1."]
[null,{"$f":"Language!E21","v":"Diese Datei ('PredictionsTransfer_2.xlsm') und der EURO-Spielplan müssen sich in demselben Ordner befinden."}]
[null,"2."]
[null,{"$f":"Language!E22","v":"Wenn sich die Dateien mit den Vorhersagen in einem separaten Ordner befinden, muss der Pfad des Ordners angegeben werden - entweder als absoluter Pfad (z. B. 'D:\\Eigene Dateien\\Excel\\WM_2022\\Tipps') oder als relativer Pfad (z. B. '..\\Data\\Tipps' oder 'Tipps') oder als Netzwerkpfad (z. B. '//host/data/excel/')."}]
[null,"3."]
[null,{"$f":"Language!E23","v":"Dateien, die nicht die Endung .xlsx haben, werden übersprungen. Bei Dateien mit der Endung .xlsx wird geprüft, ob der Inhalt der Zelle J1 mit 'hb/vers' beginnt. Wenn nicht, wird diese Datei ebenfalls ignoriert. Deshalb die Zelle J1 nicht verändern oder löschen!"}]
[null,"4."]
[null,{"$f":"Language!E24","v":"Nach dem Einlesen einer Datei wird diese umbenannt. Dem alten Dateinamen werden zwei Underscore-Zeichen vorangestellt. Aus 'Peter.xlsx' wird dann z. B. '__Peter.xlsx'. Dateien mit zwei Underscore-Zeichen am Anfang des Dateinamens werden beim Einlesen übersprungen. Auf diese Weise wird keine Datei zweimal eingelesen. Die bereits eingelesenen Dateien können in dem Ordner verbleiben."}]
[null,"5."]
[null,{"$f":"Language!E25","v":"Existiert ein Benutzername bereits im EURO-Spielplan, wird kein neuer Benutzer hinzugefügt, sondern die bisherigen Vorhersagen werden überschrieben/aktualisiert."}]
[null,"6."]
[null,{"$f":"Language!E26","v":"Beim Einlesen der Dateien erscheint rechts eine Liste der erfolgreich eingelesenen Dateien. Wurden die Vorhersagen eines Benutzers überschrieben/aktualisiert, wird der Dateiname mit einem roten Punkt gekennzeichnet."}]
[null,"7."]
[null,{"$f":"Language!E31","v":"Man kann auswählen, ab welcher Phase des Turniers die Vorhersagen übertragen werden.\nAuf diese Weise können die Vorhersagen in mehreren Stufen übertragen werden, zum Beispiel zuerst nur die Gruppenphase, dann das Achtelfinale und danach der Rest."}]
[null,"8."]
[null,{"$f":"Language!E27","v":"Der Button 'Reset' wird nur im Notfall benötigt, wenn durch einen unvorhergesehenen Error der START-Button deaktiviert sein sollte."}]